[Event "CCT Chessable Masters D-I 2024"]
[Site "Online"]
[Date "2024.02.05"]
[Round "53"]
[White "Nepomniachtchi, Ian"]
[Black "Firouzja, Alireza"]
[Result "1/2-1/2"]
[ECO "C65"]
[WhiteElo "2769"]
[BlackElo "2759"]
[Annotator "ChessBase"]
[PlyCount "323"]
[EventDate "2024.01.12"]
[EventType "k.o."]
[EventCountry "NET"]
[SourceTitle "playchess.com"]
[Source "ChessBase"]
[SourceQuality "1"]
[TimeControl "600+2"]

1. e4 {[%emt 0:00:03]} e5 {[%emt 0:00:03]} 2. Nf3 {[%emt 0:00:01]} Nc6 {[%emt 0:00:01]} 3. Bb5 {[%emt 0:00:01]} Nf6 {[%emt 0:00:01]} 4. d3 {[%emt 0:00:01]} Bc5 {[%emt 0:00:01]} 5. Bxc6 {[%emt 0:00:02]} dxc6 {[%emt 0:00:01]} 6. O-O {[%emt 0:00:00]} Qd6 {[%emt 0:00:35]} 7. b4 {[%emt 0:00:14]} Bxb4 {[%emt 0:00:22]} 8. c3 {[%emt 0:00:03]} Ba5 {[%emt 0:01:39]} 9. Ba3 {[%emt 0:00:37]} Qe6 {[%emt 0:01:23]} 10. Qa4 {[%emt 0:00:35]} b6 {[%emt 0:01:10]} 11. Nxe5 {[%emt 0:00:46]} Bb7 {[%emt 0:00:01]} 12. Nc4 {[%emt 0:00:50]} O-O-O {[%emt 0:00:01]} 13. Nxa5 {[%emt 0:00:05]} bxa5 {[%emt 0:00:01]} 14. Qc2 {[%emt 0:01:11]} Ba6 {[%emt 0:01:54]} 15. c4 {[%emt 0:00:08]} Qd7 {[%emt 0:00:03]} 16. Rd1 {[%emt 0:00:03]} Nxe4 {[%emt 0:00:25]} 17. Nc3 {[%emt 0:00:02]} Nxc3 {[%emt 0:00:05]} 18. Qxc3 {[%emt 0:00:01]} Qf5 {[%emt 0:00:06]} 19. Rab1 {[%emt 0:00:12]} Rhe8 {[%emt 0:00:04]} 20. Bc1 {[%emt 0:02:30]} Qe5 {[%emt 0:00:48]} 21. Qxe5 {[%emt 0:00:21]} Rxe5 {[%emt 0:00:01]} 22. Be3 {[%emt 0:00:00]} c5 {[%emt 0:00:07]} 23. Rd2 {[%emt 0:00:06]} Rd6 {[%emt 0:00:08]} 24. h3 {[%emt 0:00:36]} Rb6 {[%emt 0:00:25]} 25. Rb3 {[%emt 0:00:04]} Bb7 {[%emt 0:00:01]} 26. Ra3 {[%emt 0:00:35]} Rg6 {[%emt 0:00:02]} 27. g3 {[%emt 0:00:02]} Rb6 {[%emt 0:00:39]} 28. Rd1 {[%emt 0:00:15]} Rh5 {[%emt 0:00:11]} 29. Kh2 {[%emt 0:00:16]} Bf3 {[%emt 0:00:04]} 30. Rg1 {[%emt 0:00:01]} f5 {[%emt 0:00:10]} 31. h4 {[%emt 0:00:22]} Ra6 {[%emt 0:00:20]} 32. Rb1 {[%emt 0:00:08]} h6 {[%emt 0:00:04]} 33. Rb5 {[%emt 0:00:05]} g5 {[%emt 0:00:02]} 34. Rxc5 {[%emt 0:00:03]} gxh4 {[%emt 0:00:01]} 35. g4 {[%emt 0:00:04]} fxg4 {[%emt 0:00:07]} 36. Rxh5 {[%emt 0:00:04]} g3+ {[%emt 0:00:00]} 37. fxg3 {[%emt 0:00:01]} hxg3+ {[%emt 0:00:01]} 38. Kxg3 {[%emt 0:00:03]} Bxh5 {[%emt 0:00:00]} 39. d4 {[%emt 0:00:23]} Be2 {[%emt 0:00:06]} 40. Ra4 {[%emt 0:00:06]} Bd1 {[%emt 0:00:03]} 41. Ra3 {[%emt 0:00:01]} Rg6+ {[%emt 0:00:01]} 42. Kf2 {[%emt 0:00:06]} a4 {[%emt 0:00:02]} 43. d5 {[%emt 0:00:02]} Rg4 {[%emt 0:00:03]} 44. Rc3 {[%emt 0:00:06]} h5 {[%emt 0:00:03]} 45. Rc1 {[%emt 0:00:02]} Bb3 {[%emt 0:00:04]} 46. axb3 {[%emt 0:00:01]} axb3 {[%emt 0:00:00]} 47. Rb1 {[%emt 0:00:06]} Rxc4 {[%emt 0:00:01]} 48. Rxb3 {[%emt 0:00:00]} c6 {[%emt 0:00:02]} 49. d6 {[%emt 0:00:07]} Kd7 {[%emt 0:00:02]} 50. Rd3 {[%emt 0:00:01]} a5 {[%emt 0:00:03]} 51. Kf3 {[%emt 0:00:01]} a4 {[%emt 0:00:03]} 52. Bf4 {[%emt 0:00:02]} Rb4 {[%emt 0:00:01]} 53. Rd2 {[%emt 0:00:03]} a3 {[%emt 0:00:02]} 54. Rg2 {[%emt 0:00:01]} Ra4 {[%emt 0:00:04]} 55. Rg7+ {[%emt 0:00:01]} Ke6 {[%emt 0:00:00]} 56. Re7+ {[%emt 0:00:02]} Kf6 {[%emt 0:00:04]} 57. Re8 {[%emt 0:00:01]} Ra7 {[%emt 0:00:01]} 58. Be5+ {[%emt 0:00:03]} Kf7 {[%emt 0:00:02]} 59. Rh8 {[%emt 0:00:02]} Ke6 {[%emt 0:00:01]} 60. Bf4 {[%emt 0:00:07]} a2 {[%emt 0:00:02]} 61. Rh6+ {[%emt 0:00:01]} Kd5 {[%emt 0:00:01]} 62. Rxh5+ {[%emt 0:00:00]} Ke6 {[%emt 0:00:02]} 63. Rh6+ {[%emt 0:00:02]} Kd5 {[%emt 0:00:03]} 64. Rh5+ {[%emt 0:00:02]} Ke6 {[%emt 0:00:00]} 65. Re5+ {[%emt 0:00:01]} Kf6 {[%emt 0:00:04]} 66. d7 {[%emt 0:00:02]} Rxd7 {[%emt 0:00:03]} 67. Ra5 {[%emt 0:00:01]} Ke6 {[%emt 0:00:02]} 68. Rxa2 {[%emt 0:00:01]} c5 {[%emt 0:00:01]} 69. Be3 {[%emt 0:00:03]} Kd5 {[%emt 0:00:01]} 70. Rb2 {[%emt 0:00:01]} Rh7 {[%emt 0:00:03]} 71. Rc2 {[%emt 0:00:01]} Rc7 {[%emt 0:00:02]} 72. Ke2 {[%emt 0:00:02]} c4 {[%emt 0:00:03]} 73. Kd2 {[%emt 0:00:01]} Ke4 {[%emt 0:00:00]} 74. Bf2 {[%emt 0:00:01]} c3+ {[%emt 0:00:04]} 75. Ke2 {[%emt 0:00:00]} Rc8 {[%emt 0:00:00]} 76. Be3 {[%emt 0:00:01]} Rc7 {[%emt 0:00:01]} 77. Ra2 {[%emt 0:00:01]} Rc4 {[%emt 0:00:03]} 78. Ra8 {[%emt 0:00:01]} Rc7 {[%emt 0:00:03]} 79. Ra4+ {[%emt 0:00:02]} Kd5 {[%emt 0:00:01]} 80. Kd3 {[%emt 0:00:00]} c2 {[%emt 0:00:00]} 81. Bc1 {[%emt 0:00:01]} Rc6 {[%emt 0:00:01]} 82. Ra5+ {[%emt 0:00:01]} Ke6 {[%emt 0:00:01]} 83. Kd2 {[%emt 0:00:02]} Rc7 {[%emt 0:00:01]} 84. Bb2 {[%emt 0:00:02]} Rc6 {[%emt 0:00:02]} 85. Re5+ {[%emt 0:00:01]} Kd6 {[%emt 0:00:00]} 86. Re1 {[%emt 0:00:00]} Kd5 {[%emt 0:00:02]} 87. Bc3 {[%emt 0:00:01]} c1=Q+ {[%emt 0:00:02]} 88. Rxc1 {[%emt 0:00:01]} Rh6 {[%emt 0:00:00]} 89. Rd1 {[%emt 0:00:06]} Kc4 {[%emt 0:00:04]} 90. Kc2 {[%emt 0:00:01]} Rh2+ {[%emt 0:00:01]} 91. Bd2 {[%emt 0:00:00]} Rh3 {[%emt 0:00:03]} 92. Ra1 {[%emt 0:00:02]} Rg3 {[%emt 0:00:02]} 93. Ra4+ {[%emt 0:00:01]} Kb5 {[%emt 0:00:01]} 94. Re4 {[%emt 0:00:01]} Kc5 {[%emt 0:00:01]} 95. Be3+ {[%emt 0:00:01]} Kd5 {[%emt 0:00:01]} 96. Re8 {[%emt 0:00:01]} Rg4 {[%emt 0:00:03]} 97. Kd3 {[%emt 0:00:02]} Ra4 {[%emt 0:00:00]} 98. Rd8+ {[%emt 0:00:01]} Ke6 {[%emt 0:00:02]} 99. Bd4 {[%emt 0:00:01]} Ra6 {[%emt 0:00:01]} 100. Ke4 {[%emt 0:00:01]} Rd6 {[%emt 0:00:01]} 101. Rh8 {[%emt 0:00:02]} Rc6 {[%emt 0:00:02]} 102. Rh7 {[%emt 0:00:02]} Rd6 {[%emt 0:00:04]} 103. Bc5 {[%emt 0:00:01]} Rc6 {[%emt 0:00:01]} 104. Kd4 {[%emt 0:00:02]} Kf5 {[%emt 0:00:06]} 105. Kd5 {[%emt 0:00:01]} Ra6 {[%emt 0:00:06]} 106. Rh1 {[%emt 0:00:03]} Rf6 {[%emt 0:00:04]} 107. Bd4 {[%emt 0:00:02]} Rf7 {[%emt 0:00:01]} 108. Rf1+ {[%emt 0:00:07]} Kg6 {[%emt 0:00:01]} 109. Rg1+ {[%emt 0:00:02]} Kf5 {[%emt 0:00:01]} 110. Be5 {[%emt 0:00:00]} Rd7+ {[%emt 0:00:01]} 111. Bd6 {[%emt 0:00:01]} Rf7 {[%emt 0:00:01]} 112. Re1 {[%emt 0:00:11]} Kf6 {[%emt 0:00:04]} 113. Re5 {[%emt 0:00:15]} Ra7 {[%emt 0:00:02]} 114. Rh5 {[%emt 0:00:02]} Kg6 {[%emt 0:00:04]} 115. Rh2 {[%emt 0:00:01]} Rf7 {[%emt 0:00:01]} 116. Ke5 {[%emt 0:00:03]} Rf5+ {[%emt 0:00:01]} 117. Ke4 {[%emt 0:00:00]} Rf1 {[%emt 0:00:05]} 118. Rg2+ {[%emt 0:00:02]} Kf7 {[%emt 0:00:01]} 119. Be5 {[%emt 0:00:02]} Ke6 {[%emt 0:00:02]} 120. Rg6+ {[%emt 0:00:01]} Kf7 {[%emt 0:00:01]} 121. Ra6 {[%emt 0:00:01]} Re1+ {[%emt 0:00:06]} 122. Kf5 {[%emt 0:00:01]} Rf1+ {[%emt 0:00:02]} 123. Bf4 {[%emt 0:00:00]} Re1 {[%emt 0:00:00]} 124. Rb6 {[%emt 0:00:06]} Re7 {[%emt 0:00:02]} 125. Bg5 {[%emt 0:00:02]} Rd7 {[%emt 0:00:01]} 126. Rf6+ {[%emt 0:00:01]} Ke8 {[%emt 0:00:01]} 127. Re6+ {[%emt 0:00:02]} Kf7 {[%emt 0:00:01]} 128. Bf6 {[%emt 0:00:01]} Rd5+ {[%emt 0:00:02]} 129. Be5 {[%emt 0:00:01]} Rd7 {[%emt 0:00:00]} 130. Rf6+ {[%emt 0:00:01]} Ke8 {[%emt 0:00:00]} 131. Rg6 {[%emt 0:00:01]} Kf7 {[%emt 0:00:02]} 132. Rg3 {[%emt 0:00:02]} Ke7 {[%emt 0:00:07]} 133. Rh3 {[%emt 0:00:02]} Kf7 {[%emt 0:00:01]} 134. Rh6 {[%emt 0:00:01]} Ke7 {[%emt 0:00:02]} 135. Ra6 {[%emt 0:00:00]} Kf7 {[%emt 0:00:01]} 136. Bd6 {[%emt 0:00:01]} Rb7 {[%emt 0:00:01]} 137. Rb6 {[%emt 0:00:03]} Rxb6 {[%emt 0:00:01]} 138. Be5 {[%emt 0:00:00]} Rb5 {[%emt 0:00:01]} 139. Ke4 {[%emt 0:00:02]} Ke6 {[%emt 0:00:01]} 140. Bg7 {[%emt 0:00:00]} Rg5 {[%emt 0:00:01]} 141. Bh8 {[%emt 0:00:01]} Rg4+ {[%emt 0:00:01]} 142. Kf3 {[%emt 0:00:01]} Kf5 {[%emt 0:00:01]} 143. Bb2 {[%emt 0:00:02]} Rb4 {[%emt 0:00:02]} 144. Bh8 {[%emt 0:00:01]} Rb8 {[%emt 0:00:01]} 145. Bg7 {[%emt 0:00:01]} Rb3+ {[%emt 0:00:01]} 146. Kg2 {[%emt 0:00:01]} Kg4 {[%emt 0:00:02]} 147. Be5 {[%emt 0:00:01]} Rd3 {[%emt 0:00:01]} 148. Bc7 {[%emt 0:00:02]} Rc3 {[%emt 0:00:02]} 149. Bd6 {[%emt 0:00:01]} Rc2+ {[%emt 0:00:00]} 150. Kh1 {[%emt 0:00:01]} Kh3 {[%emt 0:00:02]} 151. Kg1 {[%emt 0:00:01]} Rd2 {[%emt 0:00:01]} 152. Bc7 {[%emt 0:00:01]} Rd7 {[%emt 0:00:01]} 153. Bb8 {[%emt 0:00:01]} Rb7 {[%emt 0:00:01]} 154. Bd6 {[%emt 0:00:03]} Rb2 {[%emt 0:00:01]} 155. Bc7 {[%emt 0:00:01]} Rc2 {[%emt 0:00:02]} 156. Bb8 {[%emt 0:00:01]} Kg4 {[%emt 0:00:00]} 157. Kh1 {[%emt 0:00:02]} Kf3 {[%emt 0:00:00]} 158. Bd6 {[%emt 0:00:02]} Rg2 {[%emt 0:00:00]} 159. Bc7 {[%emt 0:00:01]} Kf2 {[%emt 0:00:01]} 160. Bb6+ {[%emt 0:00:01]} Kf1 {[%emt 0:00:00]} 161. Bc7 {[%emt 0:00:03]} Rh2+ {[%emt 0:00:02]} 162. Bxh2 {[%emt 0:00:01]} 1/2-1/2

[Event "CCT Chessable Masters D-I 2024"]
[Site "Online"]
[Date "2024.02.05"]
[Round "53"]
[White "Firouzja, Alireza"]
[Black "Nepomniachtchi, Ian"]
[Result "1/2-1/2"]
[ECO "D00"]
[WhiteElo "2759"]
[BlackElo "2769"]
[Annotator "TA"]
[PlyCount "72"]
[EventDate "2024.01.12"]
[EventType "k.o."]
[EventCountry "NET"]
[SourceTitle "playchess.com"]
[Source "ChessBase"]
[SourceQuality "1"]
[TimeControl "600+2"]

{[%evp 11,72,-10,-6,-29,-29,-27,-29,-36,11,16,16,13,8,6,9,2,12,-26,0,-8,36,32,27,26,43,19,18,14,14,0,31,0,2,0,0,0,0,0,33,16,14,21,20,23,15,0,0,0,0,0,0,0,0,0,0,0,0,0,0,0,0,0,0]} 1. Nc3 {[%emt 0:00:02]} Nf6 {[%emt 0:00:03]} 2. d4 {[%emt 0:00:02]} d5 {[%emt 0:00:01]} 3. Bf4 {[%emt 0:00:01]} c6 {[%emt 0:00:00]} 4. e3 {[%emt 0:00:05]} Nbd7 {[%emt 0:00:02]} 5. g4 {[%emt 0:00:33]} Qb6 $146 {[%emt 0:00:19]} ({Predecessor:} 5... h6 6. Bg2 e6 7. h4 Bb4 8. f3 Qe7 9. Bg3 e5 10. Nge2 exd4 11. exd4 Nb6 12. Qd3 {½-½ Howell,D (2667)-Goltsev,D (2232) Titled Tuesday intern op 27th Sep Early blitz 2022 (6)}) 6. Rb1 {[%emt 0:00:55] D00: 1 d4 d5: Unusual lines.} g6 {[%emt 0:00:34]} 7. Bg2 {[%emt 0:01:11]} Bg7 {[%emt 0:00:04]} 8. h3 {[%emt 0:00:05]} O-O {[%emt 0:00:15]} 9. Nf3 {[%emt 0:00:01]} Qa6 {[%emt 0:00:45]} (9... h5 $15 {is more appropriate.}) 10. Qd3 $11 {[%emt 0:00:43]} b6 {[%emt 0:00:23]} (10... Qxd3 {simplifies} 11. cxd3 a5 12. Rc1 Nb6) 11. Ne5 {[%emt 0:00:09]} Nxe5 {[%emt 0:00:05]} 12. Bxe5 {[%emt 0:00:01]} Ne8 {[%emt 0:00:37]} 13. b4 {[%emt 0:00:28]} e6 {[%emt 0:00:50]} 14. g5 {[%emt 0:00:38]} Bxe5 {[%emt 0:01:03]} 15. dxe5 {[%emt 0:00:01]} Nc7 {[%emt 0:00:03]} 16. h4 {[%emt 0:00:14]} Qxd3 {[%emt 0:00:37]} 17. cxd3 {[%emt 0:00:01]} a5 {[%emt 0:00:00]} 18. h5 {[%emt 0:00:55]} Bd7 {[%emt 0:00:32]} 19. bxa5 {[%emt 0:00:21]} b5 {[%emt 0:01:05]} 20. Rb4 {[%emt 0:00:01]} gxh5 {[%emt 0:00:13]} 21. Rxh5 {[%emt 0:00:38]} Kg7 $1 {[%emt 0:00:00]} (21... Rxa5 $2 22. Rbh4 b4 23. Ne4 (23. Rxb4 Ra3 $11) 23... dxe4 24. Rxh7 Rxe5 25. Bxe4 Rxg5 (25... b3 26. Rh8+ Kg7 27. R4h7#) 26. Rh8+ Kg7 27. R4h7+ Kf6 28. Rxf8 Rg1+ 29. Ke2 $18) 22. Ne2 {[%emt 0:00:29]} Rxa5 {[%emt 0:00:02]} 23. Ng3 {[%emt 0:00:13]} Rxa2 {[%emt 0:01:05]} 24. Rh6 {[%emt 0:00:15]} Rh8 {[%emt 0:00:01]} 25. Nh5+ {[%emt 0:00:13]} Kf8 {[%emt 0:00:02]} 26. Nf6 {[%emt 0:00:01]} Ke7 $1 {[%emt 0:00:05]} 27. Rbh4 {[%emt 0:00:17]} Be8 {[%emt 0:00:24]} 28. Rxh7 {[%emt 0:01:04]} (28. Nxh7 Rg8 (28... Ra1+ 29. Ke2 $11) 29. g6 Rxg6 (29... fxg6 30. Ng5 $11) 30. Rxg6 fxg6 $15) 28... Rxh7 {[%emt 0:00:02]} 29. Rxh7 {[%emt 0:00:00]} b4 $1 {[%emt 0:00:07]} 30. Nxe8 {[%emt 0:00:33]} (30. g6 $2 b3 31. Ne4 (31. Nxe8 $2 b2 $19) 31... dxe4 $19) 30... b3 {[%emt 0:00:34]} 31. Nd6 {[%emt 0:00:18]} (31. Nxc7 b2 32. Ke2 b1=Q+ (32... b1=R+ $2 {loses.} 33. Kf3 $18) 33. Kf3 Qg1 (33... Qxd3 $2 34. Nxe6 Qxh7 35. Nf4 $19) 34. Nxd5+ cxd5 35. Rh3 Qxf2+ (35... Rxf2+ {leads to mate.} 36. Kg4 Rxg2+ 37. Kh5 Rxg5+ 38. Kh6 Rg8 39. Rg3 Qh2+ 40. Rh3 Qxh3#) 36. Kg4 Qf5+ (36... Qxg2+ 37. Rg3 Qh2 38. d4 Qe2+ 39. Rf3 Ra1 40. Kg3 Rg1+ 41. Kh4 Qxf3 42. g6 Qh1#) 37. Kg3 Qxg5+ (37... Qxe5+ 38. Kf3 Qf5+ 39. Kg3 Qxg5+ 40. Kf3 Rxg2 41. e4 d4 42. Rh8 Qg4#) 38. Kf3 Qxg2+ 39. Kf4 Rf2+) 31... b2 {[%emt 0:00:01]} 32. Rxf7+ {[%emt 0:00:02]} (32. Nxf7 $2 b1=Q#) 32... Kd8 {[%emt 0:00:01]} 33. Rf8+ {[%emt 0:00:01]} Kd7 {[%emt 0:00:00]} (33... Ke7 $5 34. Rf7+ $8 Kd8 35. Rf8+ Ke7 36. Rf7+ $11) 34. Rf7+ {[%emt 0:00:12]} Kd8 {[%emt 0:00:01]} 35. Rf8+ {[%emt 0:00:01]} Kd7 {[%emt 0:00:01]} (35... Ke7 $5 36. Rf7+ $8 Kd8 $11) 36. Rf7+ {[%emt 0:00:09]} Kd8 {[%emt 0:00:03]} 1/2-1/2

[Event "CCT Chessable Masters D-I 2024"]
[Site "Online"]
[Date "2024.02.05"]
[Round "54"]
[White "Firouzja, Alireza"]
[Black "Lazavik, Denis"]
[Result "1-0"]
[ECO "C54"]
[WhiteElo "2759"]
[BlackElo "2566"]
[Annotator "TA"]
[PlyCount "119"]
[EventDate "2024.01.12"]
[EventType "k.o."]
[EventCountry "NET"]
[SourceTitle "playchess.com"]
[Source "ChessBase"]
[SourceQuality "1"]
[TimeControl "600+2"]

{[%evp 35,119,18,8,14,33,27,35,30,39,41,34,7,82,47,35,41,85,50,63,63,60,31,23,18,24,21,21,0,54,53,51,51,58,58,141,141,150,150,147,142,142,142,142,142,142,142,154,142,168,126,169,169,169,140,169,169,790,725,1215,1365,1233,1212,1167,1141,1098,1098,29965,29966,29961,12043,29962,0,29950,29954,29963,29964,12269,62,69,69,29978,29968,29983,29984,29984,29985]} 1. e4 {[%emt 0:00:02]} e5 {[%emt 0:00:03]} 2. Nf3 {[%emt 0:00:02]} Nc6 {[%emt 0:00:01]} 3. Bc4 {[%emt 0:00:01]} Bc5 {[%emt 0:00:02]} 4. d3 {[%emt 0:00:01]} Nf6 {[%emt 0:00:01]} 5. h3 {[%emt 0:00:01]} d6 {[%emt 0:00:13]} 6. c3 {[%emt 0:00:04]} a6 {[%emt 0:00:01]} 7. Nbd2 {[%emt 0:00:24]} Ba7 {[%emt 0:00:10]} 8. Bb3 {[%emt 0:00:02]} O-O {[%emt 0:00:08]} 9. Nf1 {[%emt 0:00:11]} Be6 {[%emt 0:02:04] now supersedes 9...d5. C54: Giuoco Piano: 4 c3 Nf6, main lines with 5 d4 and 5 d3.} 10. Bc2 {[%emt 0:00:30]} d5 {[%emt 0:00:12]} 11. exd5 $5 {[%emt 0:01:01][%mdl 4] Exploring less charted territory.} Bxd5 $146 {[%emt 0:00:33]} ({Predecessor:} 11... Nxd5 12. Ng3 f6 13. O-O Qd7 14. Re1 Rfe8 15. Nh2 Rad8 16. Ng4 Nce7 17. Qf3 Ng6 {1-0 Sosa,T (2558)-Akbas,U (2446) Sant Boi de Llobregat op 4th 2023 (9)}) 12. Ng3 {[%emt 0:00:05]} Re8 {[%emt 0:00:08]} 13. O-O {[%emt 0:00:03]} e4 {[%emt 0:01:36]} 14. dxe4 {[%emt 0:00:13]} Nxe4 {[%emt 0:00:04]} 15. Bf4 {[%emt 0:00:04]} Nxg3 {[%emt 0:00:31]} 16. Bxg3 {[%emt 0:00:00]} Bb6 {[%emt 0:00:07]} 17. Re1 {[%emt 0:01:59]} Rxe1+ {[%emt 0:00:06]} 18. Qxe1 {[%emt 0:00:01]} Qf6 {[%emt 0:00:38]} 19. Qe2 {[%emt 0:01:35]} Bxf3 {[%emt 0:00:08]} 20. gxf3 {[%emt 0:00:13]} g6 {[%emt 0:00:21]} 21. Re1 {[%emt 0:00:08]} Rd8 {[%emt 0:00:17]} 22. Kg2 {[%emt 0:00:04]} Kg7 {[%emt 0:00:15]} 23. Ba4 {[%emt 0:00:13]} Rd7 {[%emt 0:01:09]} (23... Bc5 $11 {remains equal.}) 24. Qe8 {[%emt 0:00:59]} Rd8 {[%emt 0:01:16]} 25. Qe4 {[%emt 0:00:26]} Rd7 {[%emt 0:00:03]} 26. Bh4 {[%emt 0:00:27]} (26. Bxc6 {seems wilder.} Qxc6 27. Qe8 Rd3 28. Be5+) 26... Qf5 {[%emt 0:00:20]} 27. Qxf5 {[%emt 0:01:01]} (27. Bxc6 {is more complex.} bxc6 28. Qxc6 Rd2 29. b4) 27... gxf5 {[%emt 0:00:01]} 28. Bxc6 {[%emt 0:00:02]} bxc6 {[%emt 0:00:01]} 29. Bg5 {[%emt 0:00:06]} f6 {[%emt 0:00:06]} 30. Bf4 {[%emt 0:00:01]} Kf7 {[%emt 0:00:00]} 31. Kf1 {[%emt 0:00:12]} Rd3 {[%emt 0:00:07]} (31... c5 $11) 32. Ke2 $14 {[%emt 0:00:05]} Rd8 {[%emt 0:00:01]} 33. Rd1 {[%emt 0:00:13]} Rxd1 {[%emt 0:00:17]} 34. Kxd1 {[%emt 0:00:00]} Bxf2 {[%emt 0:00:00]} (34... c5 $14) 35. Bxc7 $16 {[%emt 0:00:02]} Ke6 {[%emt 0:00:01]} 36. Ke2 {[%emt 0:00:02]} Bc5 {[%emt 0:00:01]} 37. Kd3 {[%emt 0:00:02]} Kd5 {[%emt 0:00:01]} 38. b4 {[%emt 0:00:06]} Bf2 {[%emt 0:00:04]} 39. c4+ {[%emt 0:00:04]} Ke6 {[%emt 0:00:01]} 40. Kc3 {[%emt 0:00:10]} Be1+ {[%emt 0:00:07]} 41. Kb3 {[%emt 0:00:01]} Kd7 {[%emt 0:00:02]} 42. Bf4 {[%emt 0:00:02]} Kc8 {[%emt 0:00:03]} 43. Be3 {[%emt 0:00:07]} Bg3 {[%emt 0:00:03]} 44. a4 {[%emt 0:00:06]} Kb7 {[%emt 0:00:02]} 45. b5 {[%emt 0:00:01]} cxb5 $2 {[%emt 0:00:04]} (45... Bh2 46. f4 cxb5) 46. cxb5 $18 {[%emt 0:00:01]} ({Weaker is} 46. axb5 axb5 47. cxb5 Kc7 $18) 46... axb5 {[%emt 0:00:02]} 47. axb5 {[%emt 0:00:00]} Kc7 {[%emt 0:00:01]} 48. Kc4 {[%emt 0:00:04]} Kd6 {[%emt 0:00:01]} 49. Bc5+ {[%emt 0:00:03]} Ke6 {[%emt 0:00:00]} 50. b6 {[%emt 0:00:03]} Kd7 {[%emt 0:00:05]} 51. Kd5 {[%emt 0:00:01]} Bf4 {[%emt 0:00:03]} 52. Bd4 {[%emt 0:00:11]} (52. Bb4 $142 Be3 53. Ba5 (53. Bc5 f4 $18) 53... Bf4 54. b7 Bh2 55. Bb6 Bb8 56. Bc5 h6 57. Bb6) 52... Bg5 {[%emt 0:00:01]} 53. Bc5 {[%emt 0:00:03]} Bf4 $1 {[%emt 0:00:02]} 54. b7 {[%emt 0:00:02]} Kc7 {[%emt 0:00:01]} 55. Bd6+ {[%emt 0:00:04]} Bxd6 {[%emt 0:00:01] [#]} 56. b8=Q+ $2 {[%emt 0:00:00]} (56. b8=R $1 $18 {[%cal Rb8h8][%mdl 512]} Kxb8 57. Kxd6) 56... Kxb8 $14 {[%emt 0:00:00]} 57. Kxd6 {[%emt 0:00:00]} Kb7 $2 {[%emt 0:00:01][%mdl 8192]} (57... f4 $14 58. h4 Kb7) 58. Ke6 {[%emt 0:00:01]} Kc6 {[%emt 0:00:03]} 59. Kxf5 {[%emt 0:00:02]} Kd6 {[%emt 0:00:00]} 60. Kxf6 {[%emt 0:00:00]} 1-0